[Event "TePe Sigeman & Co Chess Tournament 2024"]
[Site "Elite Plaza Hotel, Gustav Adolfs Torg 49, Malmo, Sweden"]
[Date "2024.04.29"]
[Round "3.4"]
[White "Erigaisi, Arjun"]
[Black "Maurizzi, Marc'Andria"]
[Result "1-0"]
[TimeControl "90 minutes for 40 moves + 30 minutes for the rest of the game + 30 seconds per move from move one."]
[WhiteTitle "GM"]
[BlackTitle "GM"]
[WhiteFideId "35009192"]
[BlackFideId "36083534"]
[WhiteElo "2756"]
[BlackElo "2605"]

1. d4 {[%clk 01:30:54]} {[%emt 00:00:04]} d5 {[%clk 01:30:22]} {[%emt
00:00:39]} 2. c4 {[%clk 01:31:17]} {[%emt 00:00:06]} e6 {[%clk 01:30:49]}
{[%emt 00:00:04]} 3. Nf3 {[%clk 01:31:32]} {[%emt 00:00:14]} Nf6 {[%clk
01:31:15]} {[%emt 00:00:04]} 4. Nc3 {[%clk 01:31:56]} {[%emt 00:00:06]} c6
{[%clk 01:31:36]} {[%emt 00:00:10]} 5. cxd5 {[%clk 01:32:04]} {[%emt 00:00:22]}
exd5 {[%clk 01:32:02]} {[%emt 00:00:04]} 6. Bf4 {[%clk 01:32:29]} {[%emt
00:00:05]} Bf5 {[%clk 01:23:10]} {[%emt 00:09:22]} 7. e3 {[%clk 01:30:31]}
{[%emt 00:02:29]} Nbd7 {[%clk 01:22:46]} {[%emt 00:00:54]} 8. h3 {[%clk
01:30:52]} {[%emt 00:00:08]} Bb4 {[%clk 01:17:57]} {[%emt 00:05:19]} 9. Qb3
{[%clk 01:31:01]} {[%emt 00:00:20]} Qb6 {[%clk 01:11:52]} {[%emt 00:06:35]} 10.
g4 {[%clk 01:31:10]} {[%emt 00:00:21]} Bg6 {[%clk 00:57:02]} {[%emt 00:15:21]}
11. Nh4 {[%clk 01:31:12]} {[%emt 00:00:27]} Be7 {[%clk 00:52:25]} {[%emt
00:05:07]} 12. Nxg6 {[%clk 01:24:45]} {[%emt 00:06:57]} hxg6 {[%clk 00:52:29]}
{[%emt 00:00:26]} 13. f3 {[%clk 01:25:08]} {[%emt 00:00:07]} Nf8 {[%clk
00:50:07]} {[%emt 00:02:53]} 14. Bg3 {[%clk 01:05:01]} {[%emt 00:20:36]} Ne6
{[%clk 00:49:45]} {[%emt 00:00:53]} 15. Kf2 {[%clk 01:03:33]} {[%emt 00:01:58]}
Bd8 {[%clk 00:29:11]} {[%emt 00:21:04]} 16. Kg2 {[%clk 00:57:56]} {[%emt
00:06:07]} Bc7 {[%clk 00:28:57]} {[%emt 00:00:44]} 17. Bf2 {[%clk 00:58:18]}
{[%emt 00:00:07]} Bd6 {[%clk 00:24:19]} {[%emt 00:05:09]} 18. h4 {[%clk
00:51:39]} {[%emt 00:07:09]} Qc7 {[%clk 00:23:45]} {[%emt 00:01:05]} 19. Be2
{[%clk 00:50:28]} {[%emt 00:01:41]} O-O {[%clk 00:23:01]} {[%emt 00:01:14]} 20.
Rae1 {[%clk 00:41:42]} {[%emt 00:09:16]} b5 {[%clk 00:21:01]} {[%emt 00:02:31]}
21. g5 {[%clk 00:35:22]} {[%emt 00:06:49]} Nh5 {[%clk 00:21:05]} {[%emt
00:00:26]} 22. f4 {[%clk 00:35:46]} {[%emt 00:00:06]} Nhxf4+ {[%clk 00:13:43]}
{[%emt 00:07:53]} 23. exf4 {[%clk 00:36:02]} {[%emt 00:00:14]} Nxf4+ {[%clk
00:14:12]} {[%emt 00:00:02]} 24. Kf1 {[%clk 00:31:25]} {[%emt 00:05:07]} b4
{[%clk 00:12:18]} {[%emt 00:02:25]} 25. Nd1 {[%clk 00:30:52]} {[%emt 00:01:02]}
Rae8 {[%clk 00:10:17]} {[%emt 00:02:30]} 26. Bf3 {[%clk 00:17:37]} {[%emt
00:13:45]} Rxe1+ {[%clk 00:06:23]} {[%emt 00:04:25]} 27. Bxe1 {[%clk 00:16:30]}
{[%emt 00:01:37]} Qc8 {[%clk 00:06:12]} {[%emt 00:00:41]} 28. Bd2 {[%clk
00:15:11]} {[%emt 00:01:49]} Qf5 {[%clk 00:05:12]} {[%emt 00:01:30]} 29. Bxf4
{[%clk 00:12:38]} {[%emt 00:03:04]} Qxf4 {[%clk 00:05:38]} {[%emt 00:00:04]} 30.
Qe3 {[%clk 00:12:52]} {[%emt 00:00:16]} Qf5 {[%clk 00:06:07]} {[%emt 00:00:02]}
31. Kg2 {[%clk 00:12:36]} {[%emt 00:00:46]} Qc2+ {[%clk 00:05:25]} {[%emt
00:01:12]} 32. Qe2 {[%clk 00:12:19]} {[%emt 00:00:47]} Qf5 {[%clk 00:05:51]}
{[%emt 00:00:04]} 33. Qe3 {[%clk 00:09:51]} {[%emt 00:02:58]} Bf4 {[%clk
00:05:47]} {[%emt 00:00:34]} 34. Qf2 {[%clk 00:09:29]} {[%emt 00:00:52]} Re8
{[%clk 00:05:31]} {[%emt 00:00:46]} 35. Re1 {[%clk 00:09:27]} {[%emt 00:00:32]}
Rxe1 {[%clk 00:05:27]} {[%emt 00:00:34]} 36. Qxe1 {[%clk 00:09:53]} {[%emt
00:00:05]} Kh7 {[%clk 00:05:18]} {[%emt 00:00:39]} 37. Qe2 {[%clk 00:06:58]}
{[%emt 00:03:26]} Bd6 {[%clk 00:04:40]} {[%emt 00:01:08]} 38. Qd2 {[%clk
00:07:23]} {[%emt 00:00:05]} a5 {[%clk 00:04:04]} {[%emt 00:01:06]} 39. Nf2
{[%clk 00:07:19]} {[%emt 00:00:33]} Bc7 {[%clk 00:01:27]} {[%emt 00:03:04]} 40.
Bd1 {[%clk 00:06:13]} {[%emt 00:01:39]} Qe6 {[%clk 00:00:47]} {[%emt 00:01:09]}
41. Qd3 {[%clk 00:01:48]} {[%emt 00:04:56]} Kg8 {[%clk 00:25:36]} {[%emt
00:05:41]} 42. b3 {[%clk 00:24:17]} {[%emt 00:08:01]} Qd6 {[%clk 00:22:01]}
{[%emt 00:04:04]} 43. Ng4 {[%clk 00:24:17]} {[%emt 00:00:30]} Qe6 {[%clk
00:16:54]} {[%emt 00:05:36]} 44. Qe2 {[%clk 00:22:51]} {[%emt 00:01:56]} Qd7
{[%clk 00:16:15]} {[%emt 00:01:10]} 45. Qe3 {[%clk 00:20:35]} {[%emt 00:02:45]}
Bb6 {[%clk 00:15:27]} {[%emt 00:01:18]} 46. Ne5 {[%clk 00:19:59]} {[%emt
00:01:06]} Qe7 {[%clk 00:15:25]} {[%emt 00:00:28]} 47. Qf4 {[%clk 00:19:10]}
{[%emt 00:01:23]} Qe8 {[%clk 00:13:38]} {[%emt 00:02:16]} 48. h5 {[%clk
00:16:23]} {[%emt 00:03:18]} gxh5 {[%clk 00:13:59]} {[%emt 00:00:09]} 49. Bxh5
{[%clk 00:16:48]} {[%emt 00:00:05]} g6 {[%clk 00:14:27]} {[%emt 00:00:02]} 50.
Bg4 {[%clk 00:17:12]} {[%emt 00:00:06]} Bc7 {[%clk 00:13:45]} {[%emt 00:01:12]}
51. Qf6 {[%clk 00:17:02]} {[%emt 00:00:40]} Bd8 {[%clk 00:14:13]} {[%emt
00:00:02]} 52. Qxc6 {[%clk 00:14:31]} {[%emt 00:03:01]} Qxc6 {[%clk 00:14:37]}
{[%emt 00:00:06]} 53. Nxc6 {[%clk 00:14:57]} {[%emt 00:00:04]} Bxg5 {[%clk
00:15:05]} {[%emt 00:00:03]} 54. Nxa5 {[%clk 00:15:21]} {[%emt 00:00:06]} Be7
{[%clk 00:15:04]} {[%emt 00:00:29]} 55. Bf3 {[%clk 00:15:24]} {[%emt 00:00:28]}
f5 {[%clk 00:15:30]} {[%emt 00:00:04]} 56. Bxd5+ {[%clk 00:15:50]} {[%emt
00:00:04]} Kg7 {[%clk 00:15:58]} {[%emt 00:00:03]} 57. Bc4 {[%clk 00:12:10]}
{[%emt 00:04:10]} Kf6 {[%clk 00:16:22]} {[%emt 00:00:05]} 58. Nb7 {[%clk
00:12:34]} {[%emt 00:00:06]} g5 {[%clk 00:15:47]} {[%emt 00:01:05]} 59. d5
{[%clk 00:12:29]} {[%emt 00:00:36]} Ke5 {[%clk 00:16:12]} {[%emt 00:00:04]} 60.
d6 {[%clk 00:12:55]} {[%emt 00:00:05]} Bxd6 {[%clk 00:16:37]} {[%emt 00:00:04]}
61. Nxd6 {[%clk 00:13:17]} {[%emt 00:00:08]} Kxd6 {[%clk 00:17:04]} {[%emt
00:00:03]} 62. Kf3 {[%clk 00:13:43]} {[%emt 00:00:04]} Ke5 {[%clk 00:17:02]}
{[%emt 00:00:32]} 63. Ke3 {[%clk 00:13:39]} {[%emt 00:00:34]} g4 {[%clk
00:06:58]} {[%emt 00:10:34]} 64. Ba6 {[%clk 00:13:45]} {[%emt 00:00:23]} f4+
{[%clk 00:07:07]} {[%emt 00:00:21]} 65. Kd3 {[%clk 00:14:10]} {[%emt 00:00:05]}
f3 {[%clk 00:04:51]} {[%emt 00:02:46]} 66. Ke3 {[%clk 00:14:30]} {[%emt
00:00:10]} Kf5 {[%clk 00:05:20]} {[%emt 00:00:01]} 67. Bc8+ {[%clk 00:14:52]}
{[%emt 00:00:08]} Kg5 {[%clk 00:05:48]} {[%emt 00:00:02]} 68. Bb7 {[%clk
00:14:20]} {[%emt 00:01:02]} 1-0